Workbook

Sheet Sheet1
A1: 附件
A2: 2022年合浦县中小学（幼儿园）教职工公开招聘入围面试人员总成绩
A3: 序号 | B3: 报考单位 | C3: 报考岗位代码及 岗位名称 | D3: 姓名 | E3: 准考证号 | F3: 笔试成绩 | G3: 折算后的 笔试成绩 | H3: 面试成绩 | I3: 总成绩 | J3: 排名 | K3: 备注
A4: 1 | B4: 合浦廉州中学 | C4: 2022101高中英语教师 | D4: 陈燕 | E4: 22070204727 | F4: 79.42 | H4: 88.80 | I4: 88.80 | J4: 1
A5: 2 | D5: 谢筱榆 | E5: 22070204102 | F5: 76.94 | H5: 85.40 | I5: 85.40 | J5: 2
A6: 3 | D6: 伍雨薇 | E6: 22070204712 | F6: 79.75 | H6: 75.60 | I6: 75.60 | J6: 3
A7: 4 | D7: 黄海燕 | E7: 22070204614 | F7: 81.16 | H7: 75.00 | I7: 75.00 | J7: 4
A8: 5 | D8: 莫镕吉 | E8: 22070203225 | F8: 75.54 | H8: 0.00 | I8: 0.00 | J8: 5 | K8: 面试缺考
A9: 6 | D9: 戴文碧 | E9: 22070203513 | F9: 70.16 | H9: 0.00 | I9: 0.00 | J9: 6 | K9: 面试缺考
A10: 7 | C10: 2022103高中数学教师 | D10: 蒋卓贝 | E10: 22070203211 | F10: 80.41 | H10: 82.00 | I10: 82.00 | J10: 1
A11: 8 | D11: 潘能娟 | E11: 22070204522 | F11: 59.98 | H11: 77.00 | I11: 77.00 | J11: 2
A12: 9 | C12: 2022104高中化学教师 | D12: 吴炳爱 | E12: 22070203301 | F12: 76.93 | H12: 85.80 | I12: 85.80 | J12: 1
A13: 10 | D13: 岑庆春 | E13: 22070203306 | F13: 71.31 | H13: 82.60 | I13: 82.60 | J13: 2
A14: 11 | D14: 包远斯 | E14: 22070204026 | F14: 70.05 | H14: 82.60 | I14: 82.60 | J14: 3
A15: 12 | C15: 2022105高中生物教师 | D15: 罗祚业 | E15: 22070203515 | F15: 61.82 | H15: 85.60 | I15: 85.60 | J15: 1
A16: 13 | D16: 梁文慧 | E16: 22070203604 | F16: 67.60 | H16: 84.80 | I16: 84.80 | J16: 2
A17: 14 | B17: 合浦县第二中学 | C17: 2022106高中地理教师 | D17: 杨家梅 | E17: 22070203727 | F17: 72.89 | H17: 83.00 | I17: 83.00 | J17: 1
A18: 15 | D18: 莫秋燕 | E18: 22070203401 | F18: 66.16 | H18: 78.20 | I18: 78.20 | J18: 2
A19: 16 | D19: 宁雪梅 | E19: 22070203728 | F19: 65.01 | H19: 0.00 | I19: 0.00 | J19: 3 | K19: 面试缺考
A20: 17 | B20: 合浦县第二中学 | C20: 2022109高中生物教师 | D20: 吴相蓉 | E20: 22070203122 | F20: 67.19 | H20: 85.80 | I20: 85.80 | J20: 1
A21: 18 | C21: 2022110高中英语教师 | D21: 顾玲荣 | E21: 22070203406 | F21: 75.44 | H21: 88.00 | I21: 88.00 | J21: 1
A22: 19 | D22: 李诗茵 | E22: 22070204423 | F22: 64.57 | H22: 85.00 | I22: 85.00 | J22: 2
A23: 20 | D23: 赵英梅 | E23: 22070203125 | F23: 76.04 | H23: 84.40 | I23: 84.40 | J23: 3
A24: 21 | D24: 李娜 | E24: 22070203204 | F24: 69.95 | H24: 76.60 | I24: 76.60 | J24: 4
A25: 22 | D25: 陈力恒 | E25: 22070203128 | F25: 54.92 | H25: 0.00 | I25: 0.00 | J25: 5 | K25: 面试缺考
A26: 23 | C26: 2022111高中体育教师 | D26: 苏秋恒 | E26: 22070204610 | F26: 75.72 | H26: 82.40 | I26: 82.40 | J26: 1
A27: 24 | D27: 朱庆源 | E27: 22070204006 | F27: 67.17 | H27: 79.20 | I27: 79.20 | J27: 2
A28: 25 | D28: 蒋斌 | E28: 22070203924 | F28: 68.81 | H28: 0.00 | I28: 0.00 | J28: 3 | K28: 面试缺考
A29: 26 | B29: 合浦县第四中学 | C29: 2022112高中语文教师 | D29: 农洁 | E29: 22070203229 | F29: 70.73 | H29: 78.60 | I29: 78.60 | J29: 1
A30: 27 | D30: 李怡 | E30: 22070204430 | F30: 72.40 | H30: 77.60 | I30: 77.60 | J30: 2
A31: 28 | D31: 王莉 | E31: 22070203611 | F31: 71.40 | H31: 75.60 | I31: 75.60 | J31: 3
A32: 29 | D32: 何朗 | E32: 22070204127 | F32: 71.95 | H32: 74.00 | I32: 74.00 | J32: 4
A33: 30 | D33: 卢伊立 | E33: 22070203807 | F33: 69.22 | H33: 71.60 | I33: 71.60 | J33: 5
A34: 31 | D34: 李源 | E34: 22070203705 | F34: 75.56 | H34: 0.00 | I34: 0.00 | J34: 6 | K34: 面试缺考
A35: 32 | C35: 2022113高中数学教师 | D35: 陈鹏宇 | E35: 22070203524 | F35: 67.71 | H35: 86.00 | I35: 86.00 | J35: 1
A36: 33 | D36: 黄福发 | E36: 22070204116 | F36: 63.32 | H36: 82.40 | I36: 82.40 | J36: 2
A37: 34 | D37: 彭莉莉 | E37: 22070203223 | F37: 73.25 | H37: 81.40 | I37: 81.40 | J37: 3
A38: 35 | D38: 莫妍 | E38: 22070203503 | F38: 62.32 | H38: 79.40 | I38: 79.40 | J38: 4
A39: 36 | D39: 陈娴 | E39: 22070203624 | F39: 64.51 | H39: 79.20 | I39: 79.20 | J39: 5
A40: 37 | D40: 陈泓艺 | E40: 22070203028 | F40: 61.81 | H40: 79.20 | I40: 79.20 | J40: 6
A41: 38 | D41: 李文霞 | E41: 22070203824 | F41: 60.38 | H41: 74.80 | I41: 74.80 | J41: 7
A42: 39 | D42: 吴兴仙 | E42: 22070204324 | F42: 69.04 | H42: 0.00 | I42: 0.00 | J42: 8 | K42: 面试缺考
A43: 40 | D43: 杨业艺 | E43: 22070203922 | F43: 65.53 | H43: 0.00 | I43: 0.00 | J43: 9 | K43: 面试缺考
A44: 41 | D44: 许琼先 | E44: 22070204306 | F44: 61.48 | H44: 0.00 | I44: 0.00 | J44: 10 | K44: 面试缺考
A45: 42 | B45: 合浦县第四中学 | C45: 2022114高中英语教师 | D45: 李程庆 | E45: 22070203115 | F45: 58.93 | H45: 86.00 | I45: 86.00 | J45: 1
A46: 43 | D46: 刘思红 | E46: 22070203412 | F46: 60.75 | H46: 83.00 | I46: 83.00 | J46: 2
A47: 44 | D47: 李慧平 | E47: 22070204312 | F47: 72.49 | H47: 80.20 | I47: 80.20 | J47: 3
A48: 45 | D48: 莫小梅 | E48: 22070204520 | F48: 64.36 | H48: 79.00 | I48: 79.00 | J48: 4
A49: 46 | D49: 赵晗筠 | E49: 22070204405 | F49: 73.85 | H49: 74.00 | I49: 74.00 | J49: 5
A50: 47 | D50: 余奇岳 | E50: 22070204707 | F50: 76.29 | H50: 0.00 | I50: 0.00 | J50: 6 | K50: 面试缺考
A51: 48 | C51: 2022115高中物理教师 | D51: 陆根 | E51: 22070203411 | F51: 67.89 | H51: 87.20 | I51: 87.20 | J51: 1
A52: 49 | D52: 吴旭成 | E52: 22070203303 | F52: 66.94 | H52: 0.00 | I52: 0.00 | J52: 2 | K52: 面试缺考
A53: 50 | C53: 2022116高中化学教师 | D53: 陈婷 | E53: 22070203408 | F53: 73.29 | H53: 86.00 | I53: 86.00 | J53: 1
A54: 51 | D54: 谢万翀 | E54: 22070203102 | F54: 73.67 | H54: 85.80 | I54: 85.80 | J54: 2
A55: 52 | D55: 黄海霞 | E55: 22070203110 | F55: 77.47 | H55: 84.60 | I55: 84.60 | J55: 3
A56: 53 | D56: 吴华凤 | E56: 22070204004 | F56: 72.37 | H56: 80.40 | I56: 80.40 | J56: 4
A57: 54 | D57: 张蓉 | E57: 22070203310 | F57: 69.04 | H57: 75.20 | I57: 75.20 | J57: 5
A58: 55 | D58: 庞婷 | E58: 22070203522 | F58: 69.57 | H58: 0.00 | I58: 0.00 | J58: 6 | K58: 面试缺考
A59: 56 | C59: 2022117高中生物教师 | D59: 李根宽 | E59: 22070203501 | F59: 64.62 | H59: 87.40 | I59: 87.40 | J59: 1
A60: 57 | D60: 杨柳 | E60: 22070203417 | F60: 74.82 | H60: 85.40 | I60: 85.40 | J60: 2
A61: 58 | D61: 王春艳 | E61: 22070203505 | F61: 62.59 | H61: 85.00 | I61: 85.00 | J61: 3
A62: 59 | D62: 陈征明 | E62: 22070204530 | F62: 64.04 | H62: 83.60 | I62: 83.60 | J62: 4
A63: 60 | D63: 洪方奇 | E63: 22070203715 | F63: 61.83 | H63: 80.60 | I63: 80.60 | J63: 5
A64: 61 | D64: 廖晖 | E64: 22070203420 | F64: 60.36 | H64: 79.40 | I64: 79.40 | J64: 6
A65: 62 | D65: 黄金月 | E65: 22070204529 | F65: 64.21 | H65: 79.00 | I65: 79.00 | J65: 7
A66: 63 | D66: 张蓉蓉 | E66: 22070203309 | F66: 61.97 | H66: 79.00 | I66: 79.00 | J66: 8
A67: 64 | D67: 李环艳 | E67: 22070204304 | F67: 65.54 | H67: 0.00 | I67: 0.00 | J67: 9 | K67: 面试缺考
A68: 65 | B68: 合浦县第四中学 | C68: 2022118高中政治教师 | D68: 颜秋婷 | E68: 22070204303 | F68: 69.54 | H68: 81.20 | I68: 81.20 | J68: 1
A69: 66 | D69: 郭凤珍 | E69: 22070203621 | F69: 76.94 | H69: 78.56 | I69: 78.56 | J69: 2
A70: 67 | D70: 朱展锋 | E70: 22070203822 | F70: 72.10 | H70: 76.40 | I70: 76.40 | J70: 3
A71: 68 | D71: 宾笑婷 | E71: 22070204022 | F71: 77.40 | H71: 0.00 | I71: 0.00 | J71: 4 | K71: 面试缺考
A72: 69 | D72: 黎小霞 | E72: 22070204320 | F72: 73.91 | H72: 0.00 | I72: 0.00 | J72: 5 | K72: 面试缺考
A73: 70 | D73: 李新 | E73: 22070203203 | F73: 73.74 | H73: 0.00 | I73: 0.00 | J73: 6 | K73: 面试缺考
A74: 71 | D74: 陆莹莹 | E74: 22070203730 | F74: 73.62 | H74: 0.00 | I74: 0.00 | J74: 7 | K74: 面试缺考
A75: 72 | D75: 陈小清 | E75: 22070203510 | F75: 70.43 | H75: 0.00 | I75: 0.00 | J75: 8 | K75: 面试缺考
A76: 73 | D76: 黄琦琦 | E76: 22070203212 | F76: 69.80 | H76: 0.00 | I76: 0.00 | J76: 9 | K76: 面试缺考
A77: 74 | C77: 2022119高中历史教师 | D77: 欧丽梅 | E77: 22070204403 | F77: 65.07 | H77: 88.00 | I77: 88.00 | J77: 1
A78: 75 | D78: 杨加加 | E78: 22070204325 | F78: 64.28 | H78: 87.80 | I78: 87.80 | J78: 2
A79: 76 | D79: 王晓玲 | E79: 22070204119 | F79: 64.37 | H79: 84.80 | I79: 84.80 | J79: 3
A80: 77 | D80: 陈朝坤 | E80: 22070204323 | F80: 71.77 | H80: 81.00 | I80: 81.00 | J80: 4
A81: 78 | D81: 林艳 | E81: 22070203201 | F81: 68.29 | H81: 0.00 | I81: 0.00 | J81: 5 | K81: 面试缺考
A82: 79 | D82: 徐起兰 | E82: 22070203409 | F82: 65.99 | H82: 0.00 | I82: 0.00 | J82: 6 | K82: 面试缺考
A83: 80 | D83: 陈咪 | E83: 22070203207 | F83: 63.79 | H83: 0.00 | I83: 0.00 | J83: 7 | K83: 面试缺考
A84: 81 | B84: 合浦县第四中学 | C84: 2022120高中地理教师 | D84: 伍思莹 | E84: 22070204609 | F84: 80.26 | H84: 88.80 | I84: 88.80 | J84: 1
A85: 82 | D85: 陈祖凤 | E85: 22070203912 | F85: 71.30 | H85: 86.00 | I85: 86.00 | J85: 2
A86: 83 | D86: 卢琪珍 | E86: 22070204012 | F86: 61.42 | H86: 85.00 | I86: 85.00 | J86: 3
A87: 84 | D87: 梁竹 | E87: 22070203819 | F87: 69.71 | H87: 82.40 | I87: 82.40 | J87: 4
A88: 85 | D88: 陈景 | E88: 22070203618 | F88: 66.70 | H88: 82.20 | I88: 82.20 | J88: 5
A89: 86 | D89: 韩会会 | E89: 22070203416 | F89: 64.13 | H89: 80.40 | I89: 80.40 | J89: 6
A90: 87 | D90: 陈杰 | E90: 22070203805 | F90: 65.12 | H90: 77.60 | I90: 77.60 | J90: 7
A91: 88 | D91: 莫全凤 | E91: 22070204621 | F91: 64.81 | H91: 0.00 | I91: 0.00 | J91: 8 | K91: 面试缺考
A92: 89 | D92: 丘玲 | E92: 22070203701 | F92: 60.66 | H92: 0.00 | I92: 0.00 | J92: 9 | K92: 面试缺考
A93: 90 | C93: 2022121高中信息教师 | D93: 李锦 | E93: 22070204724 | F93: 67.59 | H93: 84.00 | I93: 84.00 | J93: 1
A94: 91 | D94: 沈娜 | E94: 22070204104 | F94: 65.79 | H94: 83.60 | I94: 83.60 | J94: 2
A95: 92 | D95: 朱梦秋 | E95: 22070204019 | F95: 71.37 | H95: 83.40 | I95: 83.40 | J95: 3
A96: 93 | D96: 陆顺静 | E96: 22070203521 | F96: 67.59 | H96: 83.00 | I96: 83.00 | J96: 4
A97: 94 | D97: 郭晓琳 | E97: 22070203103 | F97: 65.70 | H97: 83.00 | I97: 83.00 | J97: 5
A98: 95 | D98: 沈金思 | E98: 22070203913 | F98: 72.31 | H98: 80.00 | I98: 80.00 | J98: 6
A99: 96 | C99: 2022122高中心理健康教育教师 | D99: 梁倩倩 | E99: 22070203614 | F99: 67.98 | H99: 83.20 | I99: 83.20 | J99: 1
A100: 97 | D100: 巫权发 | E100: 22070204307 | F100: 70.38 | H100: 82.50 | I100: 82.50 | J100: 2
A101: 98 | B101: 合浦县山口中学 | C101: 2022123高中语文教师 | D101: 李静 | E101: 22070204316 | F101: 71.06 | H101: 80.60 | I101: 80.60 | J101: 1
A102: 99 | D102: 陈璐娇 | E102: 22070204302 | F102: 52.05 | H102: 79.80 | I102: 79.80 | J102: 2
A103: 100 | D103: 庞金玲 | E103: 22070204412 | F103: 73.32 | H103: 78.40 | I103: 78.40 | J103: 3
A104: 101 | D104: 黄福源 | E104: 22070204208 | F104: 53.43 | H104: 75.80 | I104: 75.80 | J104: 4
A105: 102 | C105: 2022126高中化学教师 | D105: 方晶晶 | E105: 22070203326 | F105: 73.38 | H105: 82.60 | I105: 82.60 | J105: 1
A106: 103 | C106: 2022128高中政治教师 | D106: 崔迪婷 | E106: 22070203716 | F106: 67.85 | H106: 81.50 | I106: 81.50 | J106: 1
A107: 104 | D107: 李小凤 | E107: 22070203321 | F107: 71.28 | H107: 79.80 | I107: 79.80 | J107: 2
A108: 105 | D108: 孟林 | E108: 22070204402 | F108: 66.79 | H108: 0.00 | I108: 0.00 | J108: 3 | K108: 面试缺考
A109: 106 | C109: 2022129高中地理教师 | D109: 王以焮 | E109: 22070203022 | F109: 72.97 | H109: 80.60 | I109: 80.60 | J109: 1
A110: 107 | B110: 合浦县石康中学 | C110: 2022132高中语文教师 | D110: 陈玲 | E110: 22070204203 | F110: 64.33 | H110: 80.60 | I110: 80.60 | J110: 1
A111: 108 | D111: 陈梦娴 | E111: 22070204023 | F111: 68.85 | H111: 79.00 | I111: 79.00 | J111: 2
A112: 109 | C112: 2022133高中数学教师 | D112: 钟子军 | E112: 22070203226 | F112: 59.92 | H112: 81.40 | I112: 81.40 | J112: 1
A113: 110 | D113: 谢雪华 | E113: 22070204305 | F113: 61.65 | H113: 80.60 | I113: 80.60 | J113: 2
A114: 111 | D114: 赖彩惠 | E114: 22070203812 | F114: 75.44 | H114: 76.60 | I114: 76.60 | J114: 3
A115: 112 | C115: 2022134高中英语教师 | D115: 杨安祥 | E115: 22070204709 | F115: 71.57 | H115: 83.20 | I115: 83.20 | J115: 1
A116: 113 | D116: 苏时宇 | E116: 22070204309 | F116: 72.74 | H116: 83.00 | I116: 83.00 | J116: 2
A117: 114 | D117: 何旭 | E117: 22070203114 | F117: 67.10 | H117: 0.00 | I117: 0.00 | J117: 3 | K117: 面试缺考
A118: 115 | C118: 2022135高中生物教师 | D118: 周玫玲 | E118: 22070203105 | F118: 66.12 | H118: 82.80 | I118: 82.80 | J118: 1
A119: 116 | C119: 2022137高中政治教师 | D119: 李霞芝 | E119: 22070203608 | F119: 62.38 | H119: 76.16 | I119: 76.16 | J119: 1
A120: 117 | C120: 2022138高中历史教师 | D120: 陈庆强 | E120: 22070204327 | F120: 70.01 | H120: 0.00 | I120: 0.00 | J120: 1 | K120: 面试缺考
A121: 118 | D121: 宁雪娇 | E121: 22070203518 | F121: 67.62 | H121: 0.00 | I121: 0.00 | J121: 2 | K121: 面试缺考
A122: 119 | B122: 合浦县公馆中学 | C122: 2022139高中语文教师 | D122: 李宗澔 | E122: 22070204526 | F122: 76.19 | H122: 87.20 | I122: 87.20 | J122: 1
A123: 120 | D123: 吴凤绵 | E123: 22070204703 | F123: 63.03 | H123: 82.60 | I123: 82.60 | J123: 2
A124: 121 | C124: 2022141高中英语教师 | D124: 陈采英 | E124: 22070204109 | F124: 69.24 | H124: 80.40 | I124: 80.40 | J124: 1
A125: 122 | D125: 周思婷 | E125: 22070203729 | F125: 58.22 | H125: 0.00 | I125: 0.00 | J125: 2 | K125: 面试缺考
A126: 123 | C126: 2022143高中化学教师 | D126: 高丽婷 | E126: 22070203617 | F126: 65.40 | H126: 0.00 | I126: 0.00 | J126: 1 | K126: 面试缺考
A127: 124 | C127: 2022146高中历史教师 | D127: 郭芳芳 | E127: 22070204508 | F127: 64.05 | H127: 0.00 | I127: 0.00 | J127: 1 | K127: 面试缺考
A128: 125 | C128: 2022148高中体育教师 | D128: 兰显菊 | E128: 22070204425 | F128: 64.77 | H128: 79.20 | I128: 79.20 | J128: 1
A129: 126 | D129: 高波 | E129: 22070204509 | F129: 69.42 | H129: 79.00 | I129: 79.00 | J129: 2
A130: 127 | D130: 孙玉倩 | E130: 22070203127 | F130: 64.27 | H130: 0.00 | I130: 0.00 | J130: 3 | K130: 面试缺考
A131: 128 | C131: 2022149高中信息教师 | D131: 张萍 | E131: 22070204711 | F131: 66.36 | H131: 84.80 | I131: 84.80 | J131: 1
A132: 129 | D132: 邓元 | E132: 22070204729 | F132: 65.06 | H132: 80.80 | I132: 80.80 | J132: 2
A133: 130 | D133: 谢大芳 | E133: 22070204108 | F133: 65.82 | H133: 79.40 | I133: 79.40 | J133: 3
A134: 131 | C134: 2022150高中美术教师 | D134: 王宗倩 | E134: 22070204029 | F134: 77.36 | H134: 81.20 | I134: 81.20 | J134: 1
A135: 132 | D135: 易灵 | E135: 22070204014 | F135: 70.70 | H135: 81.20 | I135: 81.20 | J135: 2
A136: 133 | D136: 韦寻 | E136: 22070204211 | F136: 71.85 | H136: 0.00 | I136: 0.00 | J136: 3 | K136: 面试缺考
A137: 134 | B137: 合浦县西场中学 | C137: 2022151高中数学教师 | D137: 陈积华 | E137: 22070204428 | F137: 64.62 | H137: 82.60 | I137: 82.60 | J137: 1
A138: 135 | D138: 赖俊吕 | E138: 22070203827 | F138: 64.38 | H138: 80.40 | I138: 80.40 | J138: 2
A139: 136 | C139: 2022153高中化学教师 | D139: 卫敏 | E139: 22070204005 | F139: 67.29 | H139: 85.00 | I139: 85.00 | J139: 1
A140: 137 | D140: 宁冼雄 | E140: 22070204528 | F140: 65.91 | H140: 79.60 | I140: 79.60 | J140: 2
A141: 138 | B141: 合浦县西场中学 | C141: 2022154高中语文教师 | D141: 陈健健 | E141: 22070204426 | F141: 69.69 | H141: 83.60 | I141: 83.60 | J141: 1
A142: 139 | D142: 林诗绮 | E142: 22070203101 | F142: 69.53 | H142: 78.20 | I142: 78.20 | J142: 2
A143: 140 | C143: 2022156高中历史教师 | D143: 徐超然 | E143: 22070203929 | F143: 72.03 | H143: 81.20 | I143: 81.20 | J143: 1
A144: 141 | C144: 2022157高中地理教师 | D144: 张婷 | E144: 22070204317 | F144: 74.71 | H144: 84.80 | I144: 84.80 | J144: 1
A145: 142 | D145: 林宝友 | E145: 22070204329 | F145: 66.41 | H145: 0.00 | I145: 0.00 | J145: 2 | K145: 面试缺考
A146: 143 | C146: 2022158高中生物教师 | D146: 王翠英 | E146: 22070204326 | F146: 66.46 | H146: 80.80 | I146: 80.80 | J146: 1
A147: 144 | C147: 2022159高中英语教师 | D147: 李小枝 | E147: 22070203021 | F147: 75.59 | H147: 88.40 | I147: 88.40 | J147: 1
A148: 145 | D148: 吴炳莉 | E148: 22070204416 | F148: 65.23 | H148: 78.60 | I148: 78.60 | J148: 2
A149: 146 | B149: 合浦外国语实验学校 | C149: 2022201初中语文教师 | D149: 潘能菊 | E149: 22070202502 | F149: 73.47 | H149: 86.00 | I149: 86.00 | J149: 1
A150: 147 | D150: 张岚 | E150: 22070201010 | F150: 80.36 | H150: 84.00 | I150: 84.00 | J150: 2
A151: 148 | D151: 吴竹 | E151: 22070201911 | F151: 80.12 | H151: 83.40 | I151: 83.40 | J151: 3
A152: 149 | D152: 李素芳 | E152: 22070201804 | F152: 75.94 | H152: 81.80 | I152: 81.80 | J152: 4
A153: 150 | D153: 郑小婷 | E153: 22070202614 | F153: 76.43 | H153: 77.20 | I153: 77.20 | J153: 5
A154: 151 | D154: 黄玛丽 | E154: 22070202112 | F154: 73.88 | H154: 0.00 | I154: 0.00 | J154: 6 | K154: 面试缺考
A155: 152 | C155: 2022202初中数学教师 | D155: 杨世妍 | E155: 22070202823 | F155: 72.29 | H155: 88.00 | I155: 88.00 | J155: 1
A156: 153 | D156: 李丹 | E156: 22070201207 | F156: 74.22 | H156: 87.60 | I156: 87.60 | J156: 2
A157: 154 | D157: 邓龙华 | E157: 22070202228 | F157: 71.62 | H157: 86.20 | I157: 86.20 | J157: 3
A158: 155 | D158: 苏洁 | E158: 22070202308 | F158: 71.67 | H158: 85.40 | I158: 85.40 | J158: 4
A159: 156 | D159: 吴晗 | E159: 22070202419 | F159: 71.28 | H159: 85.20 | I159: 85.20 | J159: 5
A160: 157 | D160: 黄彬 | E160: 22070201002 | F160: 73.88 | H160: 84.20 | I160: 84.20 | J160: 6
A161: 158 | D161: 廖婷 | E161: 22070202212 | F161: 72.85 | H161: 83.20 | I161: 83.20 | J161: 7
A162: 159 | D162: 黄舒婷 | E162: 22070202120 | F162: 75.95 | H162: 82.20 | I162: 82.20 | J162: 8
A163: 160 | D163: 詹晓云 | E163: 22070201310 | F163: 78.42 | H163: 79.80 | I163: 79.80 | J163: 9
A164: 161 | B164: 合浦外国语实验学校 | C164: 2022203初中英语教师 | D164: 李明芳 | E164: 22070202906 | F164: 74.07 | H164: 88.80 | I164: 88.80 | J164: 1
A165: 162 | D165: 潘茶化 | E165: 22070201927 | F165: 74.21 | H165: 87.80 | I165: 87.80 | J165: 2
A166: 163 | D166: 吴永梅 | E166: 22070202230 | F166: 78.07 | H166: 87.20 | I166: 87.20 | J166: 3
A167: 164 | C167: 2022204初中物理教师 | D167: 陈柿沅 | E167: 22070201217 | F167: 72.15 | H167: 88.40 | I167: 88.40 | J167: 1
A168: 165 | D168: 廖倩 | E168: 22070201123 | F168: 73.45 | H168: 88.20 | I168: 88.20 | J168: 2
A169: 166 | D169: 徐婷 | E169: 22070201325 | F169: 70.92 | H169: 84.60 | I169: 84.60 | J169: 3
A170: 167 | C170: 2022205初中化学教师 | D170: 莫晓晓 | E170: 22070201220 | F170: 78.64 | H170: 86.80 | I170: 86.80 | J170: 1
A171: 168 | D171: 周丽敏 | E171: 22070201524 | F171: 73.66 | H171: 83.80 | I171: 83.80 | J171: 2
A172: 169 | D172: 林凤娟 | E172: 22070201303 | F172: 77.69 | H172: 83.00 | I172: 83.00 | J172: 3
A173: 170 | C173: 2022206初中生物教师 | D173: 薛冬雯 | E173: 22070201308 | F173: 66.11 | H173: 87.00 | I173: 87.00 | J173: 1
A174: 171 | D174: 邓清连 | E174: 22070201019 | F174: 65.54 | H174: 82.80 | I174: 82.80 | J174: 2
A175: 172 | D175: 曾萍萍 | E175: 22070201223 | F175: 71.27 | H175: 82.60 | I175: 82.60 | J175: 3
A176: 173 | D176: 叶艳利 | E176: 22070201025 | F176: 66.14 | H176: 76.60 | I176: 76.60 | J176: 4
A177: 174 | D177: 和晓春 | E177: 22070202019 | F177: 74.79 | H177: 0.00 | I177: 0.00 | J177: 5 | K177: 面试缺考
A178: 175 | D178: 卢春燕 | E178: 22070203011 | F178: 70.15 | H178: 0.00 | I178: 0.00 | J178: 6 | K178: 面试缺考
A179: 176 | C179: 2022207初中政治教师 | D179: 庞小芳 | E179: 22070201203 | F179: 86.11 | H179: 89.76 | I179: 89.76 | J179: 1
A180: 177 | D180: 阮晶晶 | E180: 22070201226 | F180: 76.29 | H180: 85.20 | I180: 85.20 | J180: 2
A181: 178 | D181: 刘颖 | E181: 22070201130 | F181: 70.07 | H181: 80.80 | I181: 80.80 | J181: 3
A182: 179 | C182: 2022208初中历史教师 | D182: 胡萧萧 | E182: 22070201712 | F182: 64.60 | H182: 83.80 | I182: 83.80 | J182: 1
A183: 180 | D183: 李瑕 | E183: 22070202526 | F183: 68.03 | H183: 79.60 | I183: 79.60 | J183: 2
A184: 181 | C184: 2022209初中地理教师 | D184: 沈凤清 | E184: 22070201523 | F184: 71.99 | H184: 87.80 | I184: 87.80 | J184: 1
A185: 182 | D185: 黄旭芳 | E185: 22070202415 | F185: 71.53 | H185: 79.80 | I185: 79.80 | J185: 2
A186: 183 | D186: 唐燕凤 | E186: 22070202225 | F186: 71.93 | H186: 78.80 | I186: 78.80 | J186: 3
A187: 184 | B187: 合浦外国语实验学校 | C187: 2022210初中体育教师 | D187: 刘学敏 | E187: 22070201621 | F187: 67.01 | H187: 85.40 | I187: 85.40 | J187: 1
A188: 185 | D188: 梁啟洋 | E188: 22070202407 | F188: 76.47 | H188: 84.00 | I188: 84.00 | J188: 2
A189: 186 | D189: 欧其奇 | E189: 22070202205 | F189: 71.70 | H189: 0.00 | I189: 0.00 | J189: 3 | K189: 面试缺考
A190: 187 | C190: 2022211初中心理健康教育教师 | D190: 陈思敏 | E190: 22070201921 | F190: 70.44 | H190: 91.20 | I190: 91.20 | J190: 1
A191: 188 | D191: 庞惠鸿 | E191: 22070202215 | F191: 63.77 | H191: 85.30 | I191: 85.30 | J191: 2
A192: 189 | D192: 简雪 | E192: 22070202909 | F192: 69.24 | H192: 0.00 | I192: 0.00 | J192: 3 | K192: 面试缺考
A193: 190 | D193: 吴思雨 | E193: 22070201219 | F193: 65.60 | H193: 0.00 | I193: 0.00 | J193: 4 | K193: 面试缺考
A194: 191 | D194: 苏景芮 | E194: 22070203005 | F194: 60.82 | H194: 0.00 | I194: 0.00 | J194: 5 | K194: 面试缺考
A195: 192 | D195: 罗欣 | E195: 22070203012 | F195: 54.38 | H195: 0.00 | I195: 0.00 | J195: 6 | K195: 面试缺考
A196: 193 | C196: 2022212初中音乐教师 | D196: 吴俊良 | E196: 22070201315 | F196: 80.52 | H196: 87.00 | I196: 87.00 | J196: 1
A197: 194 | D197: 谢秋燕 | E197: 22070201609 | F197: 69.16 | H197: 85.20 | I197: 85.20 | J197: 2
A198: 195 | D198: 陈海玲 | E198: 22070201222 | F198: 75.89 | H198: 83.60 | I198: 83.60 | J198: 3
A199: 196 | C199: 2022213初中美术教师 | D199: 文传莉 | E199: 22070202822 | F199: 73.24 | H199: 87.80 | I199: 87.80 | J199: 1
A200: 197 | D200: 周祖彬 | E200: 22070201022 | F200: 71.41 | H200: 85.00 | I200: 85.00 | J200: 2
... 263 more rows

Sheet Sheet2

Sheet Sheet3
